[Event "Pan-American U20-ch 2023"]
[Site "Volta Redonda"]
[Date "2023.11.09"]
[Round "6.3"]
[White "Schnaider, Ilan"]
[Black "De Siqueira, Luigy Lira"]
[Result "1/2-1/2"]
[ECO "C45"]
[WhiteElo "2292"]
[BlackElo "2179"]
[Annotator "RC"]
[PlyCount "114"]
[EventDate "2023.10.31"]
[EventType "swiss"]
[EventCountry "BRA"]
[SourceTitle "playchess.com"]
[Source "ChessBase"]
[SourceQuality "1"]
[TimeControl "5400+30"]

1. e4 {[%emt 0:00:03]} e5 {[%emt 0:14:48]} 2. Nf3 {[%emt 0:00:13]} Nc6 {[%emt 0:00:09]} 3. d4 {[%emt 0:00:29]} exd4 {[%emt 0:00:18]} 4. Nxd4 {[%emt 0:00:07]} Bc5 {[%emt 0:00:05]} 5. Nb3 {[%emt 0:00:09]} Bb6 {[%emt 0:01:04]} 6. Nc3 {[%emt 0:00:10]} Nf6 {[%emt 0:01:35]} 7. Qe2 {[%emt 0:00:16]} O-O {[%emt 0:00:21]} 8. Bg5 {[%emt 0:00:34]} Nd4 {[%emt 0:01:40]} 9. Qd2 {[%emt 0:09:48]} Nxb3 {[%emt 0:01:04]} 10. axb3 {[%emt 0:00:30]} h6 {[%emt 0:08:36]} 11. Be3 {[%emt 0:06:05]} Bxe3 {[%emt 0:02:36]} 12. Qxe3 {[%emt 0:00:19]} d6 {[%emt 0:10:49]} 13. f3 {[%emt 1:18:17]} Nd7 {[%emt 0:27:53]} 14. Rxa7 {[%emt 0:00:00]} Rxa7 {[%emt 0:00:24]} 15. Qxa7 {[%emt 0:00:00]} Nb6 {[%emt 0:00:07]} 16. Be2 {[%emt 0:00:00]} Qh4+ {[%emt 0:01:30]} 17. g3 {[%emt 0:00:00]} Qh3 {[%emt 0:00:16]} 18. Bf1 {[%emt 0:00:00]} Qh5 {[%emt 0:00:45]} 19. Bg2 {[%emt 0:00:00]} Qc5 {[%emt 0:02:31]} 20. Qa3 {[%emt 0:00:00]} Qe3+ {[%emt 0:01:05]} 21. Ne2 {[%emt 0:00:00]} Bh3 {[%emt 0:00:15]} 22. Bxh3 {[%emt 0:00:00]} Ra8 {[%emt 0:00:11]} 23. Qxa8+ {[%emt 0:00:00]} Nxa8 {[%emt 0:00:05]} 24. Bg2 {[%emt 0:00:00]} Nb6 {[%emt 0:00:39]} 25. Kd1 {[%emt 0:00:00]} Nd7 {[%emt 0:02:00]} 26. Re1 {[%emt 0:00:00]} Ne5 {[%emt 0:01:17]} 27. Rf1 {[%emt 0:00:00]} c5 {[%emt 0:01:14]} 28. Nc3 {[%emt 0:00:34]} c4 {[%emt 0:00:50]} 29. b4 {[%emt 0:00:49]} Qa7 {[%emt 0:01:12]} 30. Kd2 {[%emt 0:01:38]} Nc6 {[%emt 0:00:26]} 31. Nd5 {[%emt 0:00:12]} b5 {[%emt 0:01:21]} 32. f4 {[%emt 0:01:46]} Kf8 {[%emt 0:03:25]} 33. c3 {[%emt 0:01:39]} Ne7 {[%emt 0:04:05]} 34. Ne3 {[%emt 0:01:00]} Kg8 {[%emt 0:00:02]} 35. h4 {[%emt 0:01:29]} g6 {[%emt 0:01:00]} 36. g4 {[%emt 0:01:04]} Kh7 {[%emt 0:01:12]} 37. Nc2 {[%emt 0:00:46]} f5 {[%emt 0:00:31]} 38. exf5 {[%emt 0:00:57]} gxf5 {[%emt 0:00:02]} 39. gxf5 {[%emt 0:00:13]} Kg7 {[%emt 0:01:04]} 40. Nd4 {[%emt 0:00:19]} Kf6 {[%emt 0:00:31]} 41. Be4 {[%emt 0:00:28]} Qa2 {[%emt 0:00:18]} 42. Kc2 {[%emt 0:00:59]} d5 {[%emt 0:00:04]} 43. Bf3 {[%emt 0:00:26]} Nxf5 {[%emt 0:00:19]} 44. Nxf5 {[%emt 0:00:22]} Kxf5 {[%emt 0:00:02]} 45. Bxd5 {[%emt 0:00:01]} Qa4+ {[%emt 0:00:17]} 46. Kd2 {[%emt 0:00:25]} Qa7 {[%emt 0:00:05]} 47. Bc6 {[%emt 0:01:12]} Qb6 {[%emt 0:01:57]} 48. Bg2 {[%emt 0:00:37]} Qd6+ {[%emt 0:00:33]} 49. Kc1 {[%emt 0:00:19]} Kg4 {[%emt 0:01:11]} 50. f5 {[%emt 0:00:26]} Qf6 {[%emt 0:00:02]} 51. Rh1 {[%emt 0:00:41]} Qe5 {[%emt 0:00:25]} 52. h5 {[%emt 0:00:24]} Kxf5 {[%emt 0:00:21]} 53. Bc6 {[%emt 0:00:26]} Kg5 {[%emt 0:00:24]} 54. Kb1 {[%emt 0:00:41]} Qe6 {[%emt 0:12:34]} 55. Bb7 {[%emt 0:00:25]} Qd7 {[%emt 0:00:00]} 56. Be4 {[%emt 0:00:19]} Kf4 {[%emt 0:00:00]} 57. Bg6 {[%emt 0:00:26]} Kg3 {[%emt 0:00:00]} 1/2-1/2

[Event "Pan-American U20-ch 2023"]
[Site "Volta Redonda"]
[Date "2023.11.09"]
[Round "6.5"]
[White "Vazquez, Facundo"]
[Black "Reyes Zavaleta, Fabian Ricardo"]
[Result "0-1"]
[ECO "E61"]
[WhiteElo "2407"]
[BlackElo "2122"]
[Annotator "RC"]
[PlyCount "132"]
[EventDate "2023.10.31"]
[EventType "swiss"]
[EventCountry "BRA"]
[SourceTitle "playchess.com"]
[Source "ChessBase"]
[SourceQuality "1"]
[TimeControl "5400+30"]

1. d4 {[%emt 0:04:24]} Nf6 {[%emt 0:00:29]} 2. c4 {[%emt 0:00:09]} g6 {[%emt 0:00:15]} 3. e3 {[%emt 0:00:06]} Bg7 {[%emt 0:00:18]} 4. Nf3 {[%emt 0:00:08]} O-O {[%emt 0:00:15]} 5. Be2 {[%emt 0:00:04]} c5 {[%emt 0:00:30]} 6. d5 {[%emt 0:00:09]} d6 {[%emt 0:00:19]} 7. Nc3 {[%emt 0:00:11]} e6 {[%emt 0:00:32]} 8. O-O {[%emt 0:00:18]} exd5 {[%emt 0:00:50]} 9. cxd5 {[%emt 0:00:02]} Bg4 {[%emt 0:02:18]} 10. Nd2 {[%emt 0:05:14]} Bxe2 {[%emt 0:01:02]} 11. Qxe2 {[%emt 0:00:02]} Nbd7 {[%emt 0:00:43]} 12. e4 {[%emt 0:10:49]} Re8 {[%emt 0:01:37]} 13. Nc4 {[%emt 0:02:43]} Nb6 {[%emt 0:02:00]} 14. Bg5 {[%emt 0:03:15]} a6 {[%emt 0:05:55]} 15. Nd2 {[%emt 0:09:44]} Qc8 {[%emt 0:17:36]} 16. Rad1 {[%emt 0:09:13]} Qg4 {[%emt 0:09:25]} 17. Qxg4 {[%emt 0:07:24]} Nxg4 {[%emt 0:00:02]} 18. h3 {[%emt 0:01:02]} Ne5 {[%emt 0:01:28]} 19. Ndb1 {[%emt 0:00:30]} Nc8 {[%emt 0:12:17]} 20. a4 {[%emt 0:02:29]} Nc4 {[%emt 0:00:53]} 21. Bc1 {[%emt 0:01:09]} Rb8 {[%emt 0:00:45]} 22. Rfe1 {[%emt 0:01:54]} b5 {[%emt 0:00:25]} 23. axb5 {[%emt 0:01:04]} axb5 {[%emt 0:00:03]} 24. Nd2 {[%emt 0:01:28]} Nxd2 {[%emt 0:11:31]} 25. Rxd2 {[%emt 0:00:59]} b4 {[%emt 0:00:28]} 26. Nd1 {[%emt 0:00:28]} Nb6 {[%emt 0:01:30]} 27. Rde2 {[%emt 0:00:11]} c4 {[%emt 0:12:27]} 28. Bf4 {[%emt 0:00:34]} Red8 {[%emt 0:00:24]} 29. Ne3 {[%emt 0:01:58]} Rbc8 {[%emt 0:01:09]} 30. Ra1 {[%emt 0:04:35]} c3 {[%emt 0:01:46]} 31. b3 {[%emt 0:00:09]} Bd4 {[%emt 0:06:09]} 32. Nc2 {[%emt 0:03:33]} Bc5 {[%emt 0:00:01]} 33. Ra6 {[%emt 0:01:39]} Nc4 {[%emt 0:11:38]} 34. Nxb4 {[%emt 0:14:56]} Bxb4 {[%emt 0:00:00]} 35. bxc4 {[%emt 0:00:08]} Rxc4 {[%emt 0:00:00]} 36. Rc6 {[%emt 0:02:16]} Rxc6 {[%emt 0:00:00]} 37. dxc6 {[%emt 0:00:01]} Rc8 {[%emt 0:00:00]} 38. Rc2 {[%emt 0:00:08]} Rxc6 {[%emt 0:00:00]} 39. f3 {[%emt 0:00:25]} f5 {[%emt 0:00:00]} 40. Kf2 {[%emt 0:00:20]} Rc4 {[%emt 0:00:00]} 41. Ke3 {[%emt 0:00:29]} d5 {[%emt 0:00:00]} 42. Kd3 {[%emt 0:15:10]} fxe4+ {[%emt 0:00:00]} 43. fxe4 {[%emt 0:00:00]} Rxe4 {[%emt 0:00:00]} 44. Be3 {[%emt 0:00:00]} Rc4 {[%emt 0:00:04]} 45. Bd4 {[%emt 0:00:00]} Kf7 {[%emt 0:01:26]} 46. Re2 {[%emt 0:00:00]} Rc6 {[%emt 0:01:37]} 47. g4 {[%emt 0:00:00]} Ra6 {[%emt 0:00:58]} 48. h4 {[%emt 0:00:00]} Ra1 {[%emt 0:00:31]} 49. Be3 {[%emt 0:00:00]} Rh1 {[%emt 0:01:26]} 50. Rf2+ {[%emt 0:00:00]} Ke6 {[%emt 0:00:44]} 51. Bg5 {[%emt 0:00:00]} Rg1 {[%emt 0:00:47]} 52. Rf4 {[%emt 0:00:11]} Rg3+ {[%emt 0:00:14]} 53. Kd4 {[%emt 0:00:36]} Be7 {[%emt 0:01:20]} 54. Bxe7 {[%emt 0:00:27]} Kxe7 {[%emt 0:00:01]} 55. Kxd5 {[%emt 0:00:32]} c2 {[%emt 0:00:06]} 56. Re4+ {[%emt 0:02:25]} Kf7 {[%emt 0:00:13]} 57. Rc4 {[%emt 0:00:28]} Rxg4 {[%emt 0:00:08]} 58. Rxc2 {[%emt 0:00:04]} Rxh4 {[%emt 0:00:06]} 59. Ke5 {[%emt 0:00:04]} Rh5+ {[%emt 0:00:11]} 60. Kf4 {[%emt 0:00:05]} Rf5+ {[%emt 0:00:05]} 61. Kg4 {[%emt 0:00:04]} h5+ {[%emt 0:00:06]} 62. Kh4 {[%emt 0:00:08]} Rf4+ {[%emt 0:00:11]} 63. Kg5 {[%emt 0:01:01]} Rg4+ {[%emt 0:00:43]} 64. Kh6 {[%emt 0:00:01]} h4 {[%emt 0:00:52]} 65. Rh2 {[%emt 0:01:05]} Kf6 {[%emt 0:00:13]} 66. Rf2+ {[%emt 0:00:45]} Ke5 {[%emt 0:00:07]} 0-1

[Event "Pan-American U20-ch 2023"]
[Site "Volta Redonda"]
[Date "2023.11.09"]
[Round "6.6"]
[White "Labussiere, Yago"]
[Black "Filgueiras, Nathan Felipe"]
[Result "1-0"]
[ECO "A22"]
[WhiteElo "2185"]
[BlackElo "2331"]
[Annotator "RC"]
[PlyCount "83"]
[EventDate "2023.10.31"]
[EventType "swiss"]
[EventCountry "BRA"]
[SourceTitle "playchess.com"]
[Source "ChessBase"]
[SourceQuality "1"]
[TimeControl "5400+30"]

1. c4 {[%emt 0:01:50]} e5 {[%emt 0:03:12]} 2. Nc3 {[%emt 0:00:20]} Nf6 {[%emt 0:00:42]} 3. Nf3 {[%emt 0:00:10]} e4 {[%emt 0:00:06]} 4. Ng5 {[%emt 0:01:24]} b5 {[%emt 0:00:05]} 5. d3 {[%emt 0:29:51]} bxc4 {[%emt 0:02:49]} 6. dxc4 {[%emt 0:59:55]} Bb4 {[%emt 0:07:42]} 7. Bd2 {[%emt 0:00:00]} Bxc3 {[%emt 0:14:39]} 8. Bxc3 {[%emt 0:00:00]} h6 {[%emt 0:07:47]} 9. Nh3 {[%emt 0:00:00]} O-O {[%emt 0:01:00]} 10. e3 {[%emt 0:00:00]} d6 {[%emt 0:01:55]} 11. Nf4 {[%emt 0:00:00]} Nc6 {[%emt 0:03:19]} 12. Be2 {[%emt 0:00:00]} Qe7 {[%emt 0:01:47]} 13. O-O {[%emt 0:00:00]} Bb7 {[%emt 0:00:58]} 14. Rc1 {[%emt 0:00:00]} Ne5 {[%emt 0:02:44]} 15. Nd5 {[%emt 0:04:30]} Qd8 {[%emt 0:08:26]} 16. Qd2 {[%emt 0:00:00]} Nfd7 {[%emt 0:06:58]} 17. Rfd1 {[%emt 0:00:00]} Re8 {[%emt 0:34:51]} 18. b4 {[%emt 0:00:00]} f5 {[%emt 0:00:00]} 19. c5 {[%emt 0:00:00]} dxc5 {[%emt 0:00:00]} 20. bxc5 {[%emt 0:00:00]} Kh7 {[%emt 0:00:00]} 21. Ba5 {[%emt 0:02:08]} Rc8 {[%emt 0:00:00]} 22. Nb4 {[%emt 0:00:35]} Re6 {[%emt 0:00:00]} 23. c6 {[%emt 0:00:06]} Nxc6 {[%emt 0:00:00]} 24. Qd5 {[%emt 0:00:35]} Qf6 {[%emt 0:00:00]} 25. Nxc6 {[%emt 0:01:01]} Bxc6 {[%emt 0:00:00]} 26. Rxc6 {[%emt 0:00:26]} Rxc6 {[%emt 0:00:00]} 27. Qxd7 {[%emt 0:00:10]} Rb8 {[%emt 0:00:00]} 28. Bf1 {[%emt 0:00:58]} Rb2 {[%emt 0:00:10]} 29. g3 {[%emt 0:00:30]} Rxa2 {[%emt 0:01:35]} 30. Bb4 {[%emt 0:00:24]} a5 {[%emt 0:00:46]} 31. Bf8 {[%emt 0:00:32]} Rcc2 {[%emt 0:00:37]} 32. Bxg7 {[%emt 0:00:23]} Qc6 {[%emt 0:02:27]} 33. Qe7 {[%emt 0:00:35]} Rxf2 {[%emt 0:00:41]} 34. Be5+ {[%emt 0:00:31]} Kg6 {[%emt 0:00:12]} 35. Qg7+ {[%emt 0:00:26]} Kh5 {[%emt 0:00:01]} 36. Bf6 {[%emt 0:00:35]} Qe8 {[%emt 0:01:10]} 37. Bh3 {[%emt 0:00:28]} Qg6 {[%emt 0:00:42]} 38. g4+ {[%emt 0:00:28]} fxg4 {[%emt 0:00:04]} 39. Rd5+ {[%emt 0:00:08]} Rf5 {[%emt 0:00:06]} 40. Rxf5+ {[%emt 0:00:44]} Qxf5 {[%emt 0:00:05]} 41. Qf7+ {[%emt 0:00:08]} Qg6 {[%emt 0:00:02]} 42. Bxg4+ {[%emt 0:00:31]} 1-0

[Event "Pan-American U20-ch 2023"]
[Site "Volta Redonda"]
[Date "2023.11.10"]
[Round "7.1"]
[White "Flores Quillas, Diego Saul Rodri"]
[Black "Tomiello, Lucas Costamilan"]
[Result "*"]
[ECO "C11"]
[WhiteElo "2369"]
[BlackElo "2279"]
[Annotator "RC"]
[PlyCount "62"]
[EventDate "2023.10.31"]
[EventType "swiss"]
[EventCountry "BRA"]
[SourceTitle "playchess.com"]
[Source "ChessBase"]
[SourceQuality "1"]
[TimeControl "5400+30"]

1. e4 {[%emt 1:20:51]} e6 {[%emt 1:20:53]} 2. d4 {[%emt 0:00:28]} d5 {[%emt 0:00:25]} 3. Nc3 {[%emt 0:00:26]} Nf6 {[%emt 0:00:30]} 4. e5 {[%emt 0:00:27]} Nfd7 {[%emt 0:00:26]} 5. f4 {[%emt 0:00:26]} c5 {[%emt 0:00:26]} 6. Nf3 {[%emt 0:00:26]} Nc6 {[%emt 0:00:26]} 7. Be3 {[%emt 0:00:35]} Be7 {[%emt 0:00:26]} 8. Qd2 {[%emt 0:01:26]} O-O {[%emt 0:00:28]} 9. h4 {[%emt 0:00:28]} a6 {[%emt 0:01:38]} 10. h5 {[%emt 0:00:46]} b5 {[%emt 0:00:27]} 11. dxc5 {[%emt 0:00:52]} Bxc5 {[%emt 0:00:39]} 12. h6 {[%emt 0:00:57]} g6 {[%emt 0:00:25]} 13. a3 {[%emt 0:00:52]} Qb6 {[%emt 0:00:52]} 14. Bf2 {[%emt 0:00:34]} Bb7 {[%emt 0:00:34]} 15. Bd3 {[%emt 0:01:16]} Rac8 {[%emt 0:02:35]} 16. O-O {[%emt 0:01:01]} Na5 {[%emt 0:00:54]} 17. Ne2 {[%emt 0:04:38]} Nc4 {[%emt 0:01:07]} 18. Bxc4 {[%emt 0:01:04]} Bxf2+ {[%emt 0:01:05]} 19. Rxf2 {[%emt 0:00:26]} bxc4 {[%emt 0:00:25]} 20. Qd4 {[%emt 0:00:37]} Nc5 {[%emt 0:00:51]} 21. Ng5 {[%emt 0:01:26]} Na4 {[%emt 0:02:51]} 22. Qxb6 {[%emt 0:00:55]} Nxb6 {[%emt 0:00:27]} 23. Nd4 {[%emt 0:00:26]} Na4 {[%emt 0:00:42]} 24. b3 {[%emt 0:00:42]} cxb3 {[%emt 0:00:29]} 25. cxb3 {[%emt 0:00:26]} Nc5 {[%emt 0:00:42]} 26. Rc2 {[%emt 0:00:29]} Nd3 {[%emt 0:00:30]} 27. Rd2 {[%emt 0:00:48]} Nxf4 {[%emt 0:00:33]} 28. Rf1 {[%emt 0:00:31]} Nh5 {[%emt 0:00:36]} 29. Rd3 {[%emt 0:00:33]} a5 {[%emt 0:00:39]} 30. b4 {[%emt 0:00:26]} axb4 {[%emt 0:00:39]} 31. axb4 {[%emt 0:00:25]} Rc4 {[%emt 0:00:25]} *

[Event "Pan-American U20-ch 2023"]
[Site "Volta Redonda"]
[Date "2023.11.10"]
[Round "7.2"]
[White "Soriano Quispe, Ivan Excender"]
[Black "Ibarra, Juan Martin"]
[Result "*"]
[ECO "B50"]
[WhiteElo "2214"]
[BlackElo "2219"]
[Annotator "RC"]
[PlyCount "72"]
[EventDate "2023.10.31"]
[EventType "swiss"]
[EventCountry "BRA"]
[SourceTitle "playchess.com"]
[Source "ChessBase"]
[SourceQuality "1"]
[TimeControl "5400+30"]

1. e4 {[%emt 1:20:51]} c5 {[%emt 1:20:52]} 2. Nf3 {[%emt 0:00:26]} d6 {[%emt 0:00:27]} 3. c3 {[%emt 0:00:25]} Nf6 {[%emt 0:00:30]} 4. h3 {[%emt 0:00:26]} Nc6 {[%emt 0:00:55]} 5. Bd3 {[%emt 0:00:26]} g6 {[%emt 0:00:39]} 6. O-O {[%emt 0:00:28]} Bg7 {[%emt 0:00:28]} 7. Bc2 {[%emt 0:00:26]} e5 {[%emt 0:00:27]} 8. d4 {[%emt 0:00:34]} cxd4 {[%emt 0:00:28]} 9. cxd4 {[%emt 0:00:26]} exd4 {[%emt 0:00:26]} 10. Nxd4 {[%emt 0:00:26]} O-O {[%emt 0:00:28]} 11. Nxc6 {[%emt 0:00:29]} bxc6 {[%emt 0:00:27]} 12. Nc3 {[%emt 0:00:25]} d5 {[%emt 0:00:32]} 13. Bg5 {[%emt 0:02:11]} h6 {[%emt 0:00:45]} 14. Bh4 {[%emt 0:00:26]} g5 {[%emt 0:01:04]} 15. Bg3 {[%emt 0:00:26]} Nxe4 {[%emt 0:00:30]} 16. Nxe4 {[%emt 0:01:02]} dxe4 {[%emt 0:00:26]} 17. Qxd8 {[%emt 0:00:27]} Rxd8 {[%emt 0:00:27]} 18. Bxe4 {[%emt 0:00:25]} Ba6 {[%emt 0:00:37]} 19. Rfe1 {[%emt 0:00:59]} Bxb2 {[%emt 0:00:53]} 20. Rab1 {[%emt 0:00:26]} Bd4 {[%emt 0:00:53]} 21. Bxc6 {[%emt 0:00:44]} Rac8 {[%emt 0:00:28]} 22. Bb7 {[%emt 0:00:26]} Bxb7 {[%emt 0:00:53]} 23. Rxb7 {[%emt 0:00:26]} Rd5 {[%emt 0:00:40]} 24. Re2 {[%emt 0:00:38]} Bb6 {[%emt 0:01:24]} 25. Kh2 {[%emt 0:00:36]} Rf5 {[%emt 0:00:51]} 26. f3 {[%emt 0:01:08]} Rc1 {[%emt 0:00:35]} 27. Bb8 {[%emt 0:01:52]} h5 {[%emt 0:01:39]} 28. Kg3 {[%emt 0:00:38]} Ra5 {[%emt 0:01:00]} 29. Re8+ {[%emt 0:01:12]} Kg7 {[%emt 0:00:39]} 30. Ree7 {[%emt 0:00:33]} Rxa2 {[%emt 0:02:43]} 31. Rxf7+ {[%emt 0:00:36]} Kg6 {[%emt 0:00:25]} 32. Rg7+ {[%emt 0:00:52]} Kh6 {[%emt 0:00:27]} 33. Rh7+ {[%emt 0:03:35]} Kg6 {[%emt 0:00:26]} 34. Rbg7+ {[%emt 0:00:34]} Kf6 {[%emt 0:00:30]} 35. Rf7+ {[%emt 0:00:48]} Kg6 {[%emt 0:00:28]} 36. Rhg7+ {[%emt 0:00:55]} Kh6 {[%emt 0:00:27]} *

[Event "Pan-American U20-ch 2023"]
[Site "Volta Redonda"]
[Date "2023.11.10"]
[Round "7.4"]
[White "De Siqueira, Luigy Lira"]
[Black "Labussiere, Yago"]
[Result "*"]
[ECO "B03"]
[WhiteElo "2179"]
[BlackElo "2185"]
[Annotator "RC"]
[PlyCount "55"]
[EventDate "2023.10.31"]
[EventType "swiss"]
[EventCountry "BRA"]
[SourceTitle "playchess.com"]
[Source "ChessBase"]
[SourceQuality "1"]
[TimeControl "5400+30"]

1. e4 {[%emt 1:20:51]} Nf6 {[%emt 1:20:51]} 2. e5 {[%emt 0:00:26]} Nd5 {[%emt 0:00:26]} 3. c4 {[%emt 0:00:27]} Nb6 {[%emt 0:00:26]} 4. d4 {[%emt 0:00:26]} d6 {[%emt 0:00:26]} 5. exd6 {[%emt 0:00:30]} exd6 {[%emt 0:00:26]} 6. Nc3 {[%emt 0:00:28]} Nc6 {[%emt 0:00:27]} 7. Be3 {[%emt 0:00:34]} Be7 {[%emt 0:00:27]} 8. Bd3 {[%emt 0:01:02]} O-O {[%emt 0:00:33]} 9. b3 {[%emt 0:01:45]} Bg5 {[%emt 0:01:47]} 10. Nf3 {[%emt 0:01:58]} Bxe3 {[%emt 0:00:26]} 11. fxe3 {[%emt 0:00:27]} Re8 {[%emt 0:00:26]} 12. Qd2 {[%emt 0:01:33]} Qe7 {[%emt 0:01:40]} 13. Nd1 {[%emt 0:02:07]} Bg4 {[%emt 0:01:57]} 14. O-O {[%emt 0:00:32]} Nd7 {[%emt 0:00:40]} 15. Qf2 {[%emt 0:03:48]} Nf6 {[%emt 0:07:02]} 16. Re1 {[%emt 0:01:36]} Bxf3 {[%emt 0:00:00]} 17. gxf3 {[%emt 0:00:05]} Nh5 {[%emt 0:01:00]} 18. Nc3 {[%emt 0:00:37]} Nb4 {[%emt 0:00:00]} 19. Bf1 {[%emt 0:00:34]} c6 {[%emt 0:00:00]} 20. a3 {[%emt 0:00:28]} Na6 {[%emt 0:00:00]} 21. Bg2 {[%emt 0:00:30]} Nc7 {[%emt 0:00:00]} 22. Qe2 {[%emt 0:00:27]} g6 {[%emt 0:00:00]} 23. Rad1 {[%emt 0:00:28]} Qd7 {[%emt 0:00:25]} 24. Qd2 {[%emt 0:00:28]} Qf5 {[%emt 0:00:33]} 25. Rf1 {[%emt 0:00:34]} d5 {[%emt 0:01:26]} 26. c5 {[%emt 0:00:33]} Rad8 {[%emt 0:00:38]} 27. b4 {[%emt 0:00:28]} Qg5 {[%emt 0:00:33]} 28. Kh1 {[%emt 0:00:00]} *

[Event "Pan-American U20-ch 2023"]
[Site "Volta Redonda"]
[Date "2023.11.10"]
[Round "7.5"]
[White "Reyes Zavaleta, Fabian Ricardo"]
[Black "Ribeiro, Matheus Mendes Domin"]
[Result "*"]
[ECO "B54"]
[WhiteElo "2122"]
[BlackElo "2150"]
[Annotator "RC"]
[PlyCount "70"]
[EventDate "2023.10.31"]
[EventType "swiss"]
[EventCountry "BRA"]
[SourceTitle "playchess.com"]
[Source "ChessBase"]
[SourceQuality "1"]
[TimeControl "5400+30"]

1. e4 {[%emt 1:31:00]} c5 {[%emt 1:20:50]} 2. Nf3 {[%emt 0:00:00]} d6 {[%emt 0:00:26]} 3. d4 {[%emt 0:00:00]} cxd4 {[%emt 0:00:26]} 4. Nxd4 {[%emt 0:00:00]} Nf6 {[%emt 0:00:26]} 5. f3 {[%emt 0:02:00]} a6 {[%emt 0:00:30]} 6. c4 {[%emt 0:00:00]} e6 {[%emt 0:00:27]} 7. Nc3 {[%emt 0:00:00]} Be7 {[%emt 0:00:29]} 8. Be3 {[%emt 0:00:00]} O-O {[%emt 0:00:48]} 9. Be2 {[%emt 0:00:00]} Qc7 {[%emt 0:00:31]} 10. O-O {[%emt 0:00:00]} Nc6 {[%emt 0:00:35]} 11. Qd2 {[%emt 0:00:00]} Rd8 {[%emt 0:00:30]} 12. Rac1 {[%emt 0:00:00]} Rb8 {[%emt 0:02:07]} 13. Rfd1 {[%emt 0:00:00]} Ne5 {[%emt 0:02:19]} 14. a3 {[%emt 0:00:00]} Bf8 {[%emt 0:00:36]} 15. Bg5 {[%emt 0:00:00]} Be7 {[%emt 0:00:50]} 16. Be3 {[%emt 0:00:00]} Bf8 {[%emt 0:00:29]} 17. b3 {[%emt 0:00:00]} b6 {[%emt 0:00:54]} 18. Bg5 {[%emt 0:00:00]} Be7 {[%emt 0:06:17]} 19. f4 {[%emt 0:00:00]} Ng6 {[%emt 0:00:00]} 20. f5 {[%emt 0:01:23]} exf5 {[%emt 0:00:00]} 21. Nxf5 {[%emt 0:00:51]} Bxf5 {[%emt 0:00:00]} 22. exf5 {[%emt 0:00:35]} Ne5 {[%emt 0:00:00]} 23. Kh1 {[%emt 0:01:01]} Neg4 {[%emt 0:00:00]} 24. Bxg4 {[%emt 0:01:24]} Nxg4 {[%emt 0:00:00]} 25. Rf1 {[%emt 0:02:24]} Nf6 {[%emt 0:00:00]} 26. Bxf6 {[%emt 0:00:39]} Bxf6 {[%emt 0:00:27]} 27. Nd5 {[%emt 0:00:27]} Qd7 {[%emt 0:00:29]} 28. Nxf6+ {[%emt 0:00:27]} gxf6 {[%emt 0:00:27]} 29. Rc3 {[%emt 0:00:33]} Kh8 {[%emt 0:00:37]} 30. Qh6 {[%emt 0:00:29]} Rg8 {[%emt 0:01:06]} 31. Qxf6+ {[%emt 0:01:02]} Rg7 {[%emt 0:00:26]} 32. Rd3 {[%emt 0:00:35]} Qc6 {[%emt 0:00:48]} 33. Rg3 {[%emt 0:00:43]} Rbg8 {[%emt 0:00:33]} 34. Rf4 {[%emt 0:00:45]} Qe8 {[%emt 0:00:37]} 35. Rh4 {[%emt 0:00:29]} Qe1# {[%emt 0:00:00]} *

[Event "Pan-American U20-ch 2023"]
[Site "Volta Redonda"]
[Date "2023.11.10"]
[Round "7.6"]
[White "Montes Orozco, Miguel Angel"]
[Black "Sathish, Pranav"]
[Result "*"]
[ECO "D02"]
[WhiteElo "2105"]
[BlackElo "2415"]
[Annotator "RC"]
[PlyCount "102"]
[EventDate "2023.10.31"]
[EventType "swiss"]
[EventCountry "BRA"]
[SourceTitle "playchess.com"]
[Source "ChessBase"]
[SourceQuality "1"]
[TimeControl "5400+30"]

1. d4 {[%emt 1:20:51]} Nf6 {[%emt 1:20:51]} 2. c4 {[%emt 0:00:26]} e6 {[%emt 0:00:25]} 3. g3 {[%emt 0:00:25]} d5 {[%emt 0:00:28]} 4. Nf3 {[%emt 0:00:26]} b6 {[%emt 0:00:29]} 5. Bg2 {[%emt 0:00:26]} Bb7 {[%emt 0:00:26]} 6. Ne5 {[%emt 0:00:26]} Bd6 {[%emt 0:00:28]} 7. O-O {[%emt 0:00:26]} O-O {[%emt 0:00:26]} 8. Nc3 {[%emt 0:00:26]} Nbd7 {[%emt 0:00:28]} 9. Bf4 {[%emt 0:00:31]} Qe7 {[%emt 0:00:41]} 10. Qa4 {[%emt 0:00:28]} c5 {[%emt 0:00:34]} 11. dxc5 {[%emt 0:00:30]} Bxe5 {[%emt 0:00:55]} 12. c6 {[%emt 0:00:28]} Bxf4 {[%emt 0:00:37]} 13. cxb7 {[%emt 0:00:30]} Rab8 {[%emt 0:00:34]} 14. gxf4 {[%emt 0:00:26]} Rxb7 {[%emt 0:00:34]} 15. cxd5 {[%emt 0:00:26]} Nc5 {[%emt 0:00:47]} 16. Qc2 {[%emt 0:00:31]} exd5 {[%emt 0:00:27]} 17. Nxd5 {[%emt 0:00:35]} Nxd5 {[%emt 0:00:27]} 18. Bxd5 {[%emt 0:00:26]} Rd7 {[%emt 0:00:26]} 19. Bf3 {[%emt 0:00:27]} Qh4 {[%emt 0:00:37]} 20. e3 {[%emt 0:01:04]} Rd6 {[%emt 0:00:34]} 21. f5 {[%emt 0:00:26]} Rh6 {[%emt 0:00:30]} 22. Rfd1 {[%emt 0:00:31]} Qxh2+ {[%emt 0:00:33]} 23. Kf1 {[%emt 0:00:25]} Qe5 {[%emt 0:00:44]} 24. b4 {[%emt 0:00:32]} Na6 {[%emt 0:00:36]} 25. a3 {[%emt 0:00:27]} Rf6 {[%emt 0:00:35]} 26. e4 {[%emt 0:00:29]} Nc7 {[%emt 0:00:29]} 27. Rac1 {[%emt 0:00:30]} Nb5 {[%emt 0:00:31]} 28. Qd3 {[%emt 0:00:36]} Qf4 {[%emt 0:00:43]} 29. Bg2 {[%emt 0:00:39]} Nd6 {[%emt 0:01:02]} 30. Qd5 {[%emt 0:00:52]} Rh6 {[%emt 0:00:42]} 31. Rc6 {[%emt 0:00:54]} Ne8 {[%emt 0:02:15]} 32. Rxh6 {[%emt 0:00:34]} Qxh6 {[%emt 0:00:26]} 33. e5 {[%emt 0:00:27]} Qg5 {[%emt 0:00:35]} 34. Qe4 {[%emt 0:00:42]} g6 {[%emt 0:00:32]} 35. Bh3 {[%emt 0:01:19]} Ng7 {[%emt 0:00:36]} 36. f6 {[%emt 0:00:25]} Nh5 {[%emt 0:00:34]} 37. Rd4 {[%emt 0:01:11]} Qh6 {[%emt 0:01:07]} 38. Bg4 {[%emt 0:00:38]} Qc1+ {[%emt 0:00:34]} 39. Kg2 {[%emt 0:00:27]} Qg5 {[%emt 0:00:29]} 40. Kf3 {[%emt 0:00:40]} Qh4 {[%emt 0:00:37]} 41. Ke2 {[%emt 0:00:52]} Qh2 {[%emt 0:00:32]} 42. Ke3 {[%emt 0:02:26]} Re8 {[%emt 0:00:50]} 43. Bxh5 {[%emt 0:00:43]} Qxh5 {[%emt 0:00:27]} 44. f4 {[%emt 0:00:38]} Qh3+ {[%emt 0:00:33]} 45. Qf3 {[%emt 0:00:27]} Qh2 {[%emt 0:00:40]} 46. Rd2 {[%emt 0:00:48]} Qg1+ {[%emt 0:00:28]} 47. Qf2 {[%emt 0:00:48]} Qc1 {[%emt 0:00:29]} 48. Kf3 {[%emt 0:00:36]} Qxa3+ {[%emt 0:00:29]} 49. Kg4 {[%emt 0:00:29]} Qb3 {[%emt 0:00:48]} 50. Qh4 {[%emt 0:01:50]} h5+ {[%emt 0:00:45]} 51. Kg5 {[%emt 0:00:48]} Kh7 {[%emt 0:01:09]} *